[Event "AI Cup Div-2 2023"]
[Site "Online"]
[Date "2023.09.27"]
[Round "52.1"]
[White "Duda, Jan-Krzysztof"]
[Black "Kuzubov, Yuriy"]
[Result "0-1"]
[ECO "C67"]
[WhiteElo "2726"]
[BlackElo "2625"]
[Annotator "TA"]
[PlyCount "148"]
[EventDate "2023.09.18"]
[EventType "k.o."]
[EventCountry "NET"]
[SourceTitle "playchess.com"]
[Source "ChessBase"]
[SourceQuality "1"]
[TimeControl "900+3"]

{[%evp 15,148,19,25,18,17,22,17,22,22,17,9,14,21,18,18,14,16,21,12,11,21,13,18,-19,18,21,22,15,28,6,14,4,9,2,7,0,10,0,0,0,0,0,22,19,15,0,0,0,0,0,0,0,0,0,0,0,0,-43,-38,-41,-55,-44,-54,-44,-41,-46,-49,-86,-12,-29,-16,-23,-18,-38,-45,-168,-91,-91,-15,-13,0,0,85,68,94,91,1097,1059,895,823,689,0,0,0,0,0,0,0,0,0,0,0,0,0,0,0,0,0,0,0,0,0,0,0,0,0,0,0,0,-1100,-1052,-1371,-1287,-12842,-12843,-12843,-12843,-12844,-12844,-12845,-12843,-12843,-12843,-12845,-12844]} 1. e4 {[%emt 0:00:07]} e5 {[%emt 0:00:07]} 2. Nf3 {[%emt 0:00:01]} Nc6 {[%emt 0:00:01]} 3. Bb5 {[%emt 0:00:02]} Nf6 {[%emt 0:00:02]} 4. O-O {[%emt 0:00:12][%cal Bh1f1,Bf1e1,Be1e5][%mdl 32]} Nxe4 {[%emt 0:00:02]} 5. Re1 {[%emt 0:00:00]} Nd6 {[%emt 0:00:01]} 6. Nxe5 {[%emt 0:00:01]} Be7 {[%emt 0:00:02]} 7. Bf1 {[%emt 0:00:01]} Nxe5 {[%emt 0:00:04]} 8. Rxe5 {[%emt 0:00:01]} O-O {[%emt 0:00:01]} 9. Nc3 {[%emt 0:00:03] C67: Ruy Lopez: Berlin Defence: 4 0-0 Nxe4.} Ne8 {[%emt 0:00:20]} 10. Nd5 {[%emt 0:00:04][%cal Bc3d5,Bd5e3,Be3f5,Bf5e7][%mdl 32] Black is weak on the light squares} Bd6 {[%emt 0:00:02]} 11. Re1 {[%emt 0:00:03] The position is equal.} c6 {[%emt 0:00:03]} (11... Qh4 12. g3 Qd8 13. Ne3 $16) 12. Ne3 {[%emt 0:00:01]} Bc7 {[%emt 0:00:02]} (12... Qh4 13. g3 Qd8 14. d4 $16) 13. Nf5 {[%emt 0:00:07]} d5 {[%emt 0:00:02]} 14. Ne7+ {[%emt 0:00:01]} Kh8 {[%emt 0:00:00]} 15. Nxc8 {[%emt 0:00:01]} Rxc8 {[%emt 0:00:05]} 16. d3 {[%emt 0:00:00]} f5 {[%emt 0:00:33] 16...Nf6 is not played anymore.} 17. Qf3 {[%emt 0:00:03]} Qf6 $5 {[%emt 0:00:57][%mdl 4] A promising side line.} 18. Rb1 {[%emt 0:00:28]} Nd6 {[%emt 0:01:53] [#]} 19. b4 $146 {[%emt 0:00:53]} ({Predecessor:} 19. Bf4 Nf7 20. Bxc7 Rxc7 21. Qe3 a6 22. Qe6 Nd6 23. Qxf6 Rxf6 24. Re5 g6 25. Rbe1 {½-½ Nisipeanu,L (2661)-Aronian,L (2780) Olympiad-43 Batumi 2018 (11.1)}) 19... Rce8 {[%emt 0:01:18]} (19... Nb5 {is interesting.} 20. Qh5 Be5 21. c4 Nc3) 20. Rxe8 {[%emt 0:01:34]} Rxe8 {[%emt 0:00:03]} 21. Bb2 {[%emt 0:00:01] Wards off Qc3} d4 {[%emt 0:00:29]} 22. g3 {[%emt 0:01:45]} a5 {[%emt 0:02:29]} 23. bxa5 {[%emt 0:00:51]} Bxa5 {[%emt 0:00:02]} 24. a4 {[%emt 0:00:25]} c5 {[%emt 0:00:15]} 25. h4 {[%emt 0:01:41]} h6 {[%emt 0:00:16]} 26. Bh3 {[%emt 0:01:28]} g6 {[%emt 0:01:17]} 27. Rf1 {[%emt 0:00:38]} Kg7 {[%emt 0:00:12]} 28. Bc1 {[%emt 0:00:07]} g5 {[%emt 0:00:19] Prevents Bf4} 29. Bg2 {[%emt 0:00:31][%cal Bh3g2,Bg2f3,Bf3d5][%mdl 32]} Kg6 {[%emt 0:01:20]} 30. Qd5 {[%emt 0:00:12]} (30. hxg5 {simplifies} hxg5 31. Qd1 Re7 32. Bf3) 30... b6 {[%emt 0:00:17]} 31. Bf3 {[%emt 0:00:40]} Nf7 {[%emt 0:00:15]} 32. Qd7 {[%emt 0:00:12]} Qe6 {[%emt 0:00:18]} 33. Qb7 {[%emt 0:00:34]} Ne5 {[%emt 0:00:21]} 34. Bd5 {[%emt 0:00:26] A strong pair of Bishops.} Qe7 {[%emt 0:00:06]} 35. Qxe7 {[%emt 0:00:09]} Rxe7 {[%emt 0:00:01]} 36. f4 {[%emt 0:00:01]} Ng4 {[%emt 0:00:04]} 37. Bf3 {[%emt 0:02:10]} (37. hxg5 $2 Ne3 38. Bxe3 dxe3 $19) 37... gxh4 {[%emt 0:01:44]} 38. Bxg4 {[%emt 0:00:04]} fxg4 $15 {[%emt 0:00:01][%mdl 4096] Endgame KRB-KRB} 39. f5+ {[%emt 0:00:01]} Kf7 {[%emt 0:00:38]} 40. gxh4 {[%emt 0:00:19]} h5 {[%emt 0:00:04][%cal Oe7e3]} 41. Bg5 {[%emt 0:00:27] Against Re3} Re2 {[%emt 0:00:09]} ({Black should try} 41... Re8 $17 {White should prevent ...Be1.} 42. Kg2 c4) 42. Rf2 $11 {[%emt 0:00:04]} Re1+ {[%emt 0:00:08]} (42... Re5 $5 {[%cal Ra5e1]}) 43. Kg2 {[%emt 0:00:01]} Re8 {[%emt 0:00:13]} 44. f6 {[%emt 0:00:10]} Re5 {[%emt 0:00:11]} 45. Kg1 {[%emt 0:00:10]} (45. Bf4 $15 Re6 46. Bg5) 45... Be1 {[%emt 0:00:06]} ({Black should play} 45... Bb4 $19 {[%cal Oc5c4]} 46. Bf4 Re1+ 47. Kg2 Ra1) 46. Rf1 $17 {[%emt 0:00:08]} Re2 {[%emt 0:00:10] Black is more active.} ({Better is} 46... Bb4 $17 {[%cal Oc5c4] Threatens to win with ...c4!} 47. Kg2 Be1) 47. Rf5 $1 $11 {[%emt 0:00:06]} Bg3 {[%emt 0:00:05] [#] aiming for ...Bh2+.} 48. Rd5 {[%emt 0:00:05] And now Rd7+ would win.} Bh2+ {[%emt 0:00:04]} (48... Rxc2 $11 49. Rd7+ Ke6 50. Re7+ Kd6) 49. Kf1 $16 {[%emt 0:00:05]} Rxc2 {[%emt 0:00:03] ...Ke6 would be deadly.} 50. Rd7+ {[%emt 0:00:02]} Ke6 $2 {[%emt 0:00:04][%mdl 8192]} (50... Kg6 $16) 51. Re7+ $18 {[%emt 0:00:11]} Kd5 {[%emt 0:00:03]} 52. f7 {[%emt 0:00:08]} g3 {[%emt 0:00:05] [#]} 53. Re2 $2 {[%emt 0:00:00]} (53. f8=B $2 g2+ 54. Ke1 g1=Q#) (53. Bd2 $1 $18 Rxd2 54. f8=Q (54. f8=B g2+ 55. Ke1 Rxd3 56. Rd7+ Kc4 57. Rg7 Bg3+ 58. Rxg3 Rxg3 59. Kf2 g1=Q+ 60. Ke2 Qh2+ 61. Kf1 Rg1#) 54... Rf2+ 55. Qxf2 gxf2 56. Rh7) 53... Rxe2 $11 {[%emt 0:00:03][%mdl 64] Remove Defender} 54. Kxe2 {[%emt 0:00:00] Intending Bf4 and mate. KB-KB} g2 {[%emt 0:00:00]} 55. f8=Q {[%emt 0:00:02] White threatens Qa8+ and mate.} (55. f8=R $2 g1=Q 56. a5 bxa5 $19) 55... g1=Q {[%emt 0:00:00] KQB-KQB} 56. Qa8+ {[%emt 0:00:08]} Ke6 {[%emt 0:00:04]} 57. Qc8+ {[%emt 0:00:03]} Kd5 {[%emt 0:00:03]} 58. Qb7+ {[%emt 0:00:05]} Ke5 $1 {[%emt 0:00:03]} (58... Kd6 59. Qxb6+ Kd7 60. Qd8+ (60. Qxc5 Qg4+ 61. Ke1 Bg3+ 62. Kd2 Bf4+ 63. Bxf4 Qxf4+ 64. Kd1 Qg4+ 65. Kc1 Qxh4 $11) 60... Kc6 61. Qe8+ Kd6 62. Qg6+ (62. Qxh5 Qg2+ 63. Kd1 Qg1+ 64. Kd2 Qf2+ 65. Kc1 Qf1+ 66. Kd2 Qf2+ 67. Kd1 Qf1+ 68. Kc2 Qg2+ 69. Kd1 Qf1+ 70. Kd2 Qf2+ $11) (62. Be7+ Kc7 $14) 62... Kd7 63. Qxh5 $16) 59. Qe7+ {[%emt 0:00:03]} Kd5 {[%emt 0:00:04]} 60. Qb7+ {[%emt 0:00:03]} Ke5 $1 {[%emt 0:00:00]} ({Don't do} 60... Kd6 61. Qxb6+ Kd7 62. Qd8+ (62. Qxc5 Qg4+ 63. Ke1 Bg3+ 64. Kd2 Bf4+ 65. Bxf4 Qxf4+ 66. Kd1 Qxh4 $11) 62... Kc6 63. Qe8+ Kd6 64. Qg6+ (64. Qxh5 Qg2+ 65. Kd1 Qf1+ 66. Kc2 Qg2+ 67. Kd1 Qf1+ 68. Kc2 Qg2+ 69. Kb3 Qb7+ 70. Ka2 Qg2+ 71. Ka3 Qf1 $14) (64. Be7+ Kc7 $14) 64... Kd7 65. Qf7+ (65. Qxh5 Qg2+ 66. Kd1 Qd5 $18) 65... Kd6 66. Qg6+ (66. Qxh5 Qg2+ 67. Kd1 Qg1+ 68. Kc2 Qg2+ 69. Bd2 Bf4 $11) (66. Be7+ Kc7 $14) 66... Kd7 67. Qh7+ (67. Qxh5 Qg2+ 68. Kd1 Qf1+ 69. Kc2 Qf5 $18) 67... Kd6 68. Qh6+ (68. Qxh5 Qg2+ 69. Kd1 Qf1+ 70. Kd2 Qf2+ 71. Qe2 Bf4+ 72. Bxf4+ Qxf4+ 73. Kd1 Qxh4 $11) 68... Kd7 69. Qxh5 $18) 61. Qb8+ {[%emt 0:00:02]} Kd5 {[%emt 0:00:05]} 62. Qg8+ {[%emt 0:00:02]} Kc6 {[%emt 0:00:03] White must now prevent ...Qg4+. Some like it hot} 63. Qa8+ {[%emt 0:00:04]} Kc7 {[%emt 0:00:04]} 64. Qa7+ {[%emt 0:00:03]} Kc6 {[%emt 0:00:06]} 65. Qa8+ {[%emt 0:00:01]} Kd7 {[%emt 0:00:03]} 66. Qd5+ {[%emt 0:00:04]} Bd6 {[%emt 0:00:03]} 67. Bf4 $2 {[%emt 0:00:02][%mdl 8192]} (67. Qb7+ $11 Bc7 68. Qd5+ Bd6 69. Qb7+ Bc7 70. Qd5+ Kc8 71. Qa8+ Kd7 72. Qd5+) 67... Qg4+ $19 {[%emt 0:00:01] Black is clearly winning.} 68. Ke1 {[%emt 0:00:01]} Qxf4 {[%emt 0:00:01]} 69. Qxh5 {[%emt 0:00:03]} Qe5+ {[%emt 0:00:01]} 70. Qxe5 {[%emt 0:00:02]} Bxe5 {[%emt 0:00:00] KB-K3P} 71. Kd2 {[%emt 0:00:01]} Ke6 {[%emt 0:00:01]} 72. Kc2 {[%emt 0:00:00]} Bg3 {[%emt 0:00:01]} 73. h5 {[%emt 0:00:02]} Kf6 {[%emt 0:00:02]} 74. Kb3 {[%emt 0:00:01]} Be1 {[%emt 0:00:00] Black used his chance.   Weighted Error Value: White=0.13 (very precise) /Black=0.13 (very precise)} 0-1

[Event "AI Cup Div-2 2023"]
[Site "Online"]
[Date "2023.09.27"]
[Round "52.1"]
[White "Keymer, Vincent"]
[Black "Niemann, Hans Moke"]
[Result "1/2-1/2"]
[ECO "A11"]
[WhiteElo "2717"]
[BlackElo "2667"]
[Annotator "TA"]
[PlyCount "103"]
[EventDate "2023.09.18"]
[EventType "k.o."]
[EventCountry "NET"]
[SourceTitle "playchess.com"]
[Source "ChessBase"]
[SourceQuality "1"]
[TimeControl "900+3"]

{[%evp 18,103,25,23,15,21,12,4,20,14,14,20,30,20,30,16,34,42,60,0,0,0,0,0,0,0,0,0,19,14,50,48,71,22,40,29,69,0,0,0,0,0,0,0,0,0,6,0,0,0,8,8,8,8,7,6,7,0,0,0,0,0,0,0,7,7,7,7,7,7,8,8,8,0,8,0,7,7,7,0,8,8,8,0,8,0,10,0]} 1. Nf3 {[%emt 0:00:05]} Nf6 {[%emt 0:00:10]} 2. g3 {[%emt 0:00:04]} g6 {[%emt 0:00:06]} 3. Bg2 {[%emt 0:00:01]} Bg7 {[%emt 0:00:00]} 4. O-O {[%emt 0:00:07]} O-O {[%emt 0:00:20]} 5. c4 {[%emt 0:00:02]} c6 {[%emt 0:00:07]} 6. b3 {[%emt 0:00:02]} d5 {[%emt 0:00:07]} 7. Bb2 {[%emt 0:00:01]} Bg4 {[%emt 0:00:10]} 8. d3 {[%emt 0:00:15]} Nbd7 {[%emt 0:00:02]} 9. Nbd2 {[%emt 0:00:01]} Re8 {[%emt 0:00:02]} 10. h3 {[%emt 0:00:38]} Bxf3 {[%emt 0:00:03] A11: English Opening: 1...c6.} 11. Nxf3 {[%emt 0:00:00]} e5 {[%emt 0:00:02]} 12. cxd5 {[%emt 0:00:02]} cxd5 {[%emt 0:00:11]} 13. Rc1 {[%emt 0:00:08]} Qb6 {[%emt 0:00:24]} 14. e3 {[%emt 0:01:21]} Rad8 {[%emt 0:00:11]} 15. Qc2 {[%emt 0:00:07] [#]} Bf8 $146 {[%emt 0:02:04]} ({Predecessor:} 15... Qa6 16. a3 e4 17. dxe4 dxe4 18. Nd2 b5 19. Qc6 Qxc6 20. Rxc6 Ne5 21. Rc2 Rd3 {½-½ Jumabayev,R (2617)-Sanal,V (2574) Novi Sad Serbia op-A 2022 (4)}) 16. Qc7 {[%emt 0:02:01]} Bd6 {[%emt 0:00:10]} 17. Qxb6 {[%emt 0:00:03]} axb6 {[%emt 0:00:12]} 18. d4 {[%emt 0:01:20]} ({White should try} 18. a3 $14) 18... e4 $11 {[%emt 0:00:03]} 19. Nd2 {[%emt 0:00:01]} b5 {[%emt 0:00:12]} 20. a3 {[%emt 0:00:04]} Ra8 {[%emt 0:00:14]} 21. Nb1 {[%emt 0:00:36]} b4 {[%emt 0:00:04]} 22. axb4 {[%emt 0:00:16]} Ra2 {[%emt 0:00:23]} 23. Bc3 {[%emt 0:00:37]} Rc8 {[%emt 0:00:20]} 24. Rfd1 {[%emt 0:00:27]} Nf8 {[%emt 0:00:15]} 25. h4 {[%emt 0:01:28]} (25. b5 $16) 25... h5 {[%emt 0:00:31]} 26. Bf1 {[%emt 0:01:08]} Ng4 {[%emt 0:01:13]} 27. Rd2 {[%emt 0:00:26]} (27. Be1 $14 Rxc1 28. Rxc1) 27... Rxd2 {[%emt 0:00:03] The position is equal.} 28. Bxd2 {[%emt 0:00:01]} Rxc1 {[%emt 0:00:01]} 29. Bxc1 {[%emt 0:00:00]} Bxb4 {[%emt 0:00:00] ...Be1 would be deadly.} 30. Bd2 {[%emt 0:00:13] Wards off Be1} Bxd2 {[%emt 0:00:11]} 31. Nxd2 {[%emt 0:00:00][%mdl 4096] Endgame KBN-KNN} Nd7 {[%emt 0:00:10]} 32. Nb1 {[%emt 0:00:21]} Nb6 {[%emt 0:00:30]} 33. Bh3 {[%emt 0:00:45]} Nf6 {[%emt 0:00:02]} 34. Nc3 {[%emt 0:00:12]} Kf8 {[%emt 0:00:01]} 35. Kf1 {[%emt 0:00:11]} Ke7 {[%emt 0:00:02]} 36. Ke2 {[%emt 0:00:00]} Kd6 {[%emt 0:00:01]} 37. Kd2 {[%emt 0:00:09]} Nbd7 {[%emt 0:00:24]} 38. Ne2 {[%emt 0:00:18]} Nb8 {[%emt 0:00:04]} 39. Kc3 {[%emt 0:00:08]} Ne8 {[%emt 0:00:04]} 40. Nf4 {[%emt 0:00:18]} Nc7 {[%emt 0:00:08]} 41. Bc8 {[%emt 0:00:13]} b6 {[%emt 0:00:01]} 42. g4 {[%emt 0:00:14]} hxg4 {[%emt 0:00:02]} 43. Bxg4 {[%emt 0:00:00]} Nc6 {[%emt 0:00:13]} 44. h5 {[%emt 0:00:03]} gxh5 {[%emt 0:00:01]} 45. Bxh5 {[%emt 0:00:01]} Ke7 {[%emt 0:00:05]} 46. Kd2 {[%emt 0:00:15]} Na5 {[%emt 0:00:05]} 47. Kc2 {[%emt 0:00:03]} Nc6 {[%emt 0:00:02]} 48. Kc3 {[%emt 0:00:01]} Nb5+ {[%emt 0:00:02]} 49. Kd2 {[%emt 0:00:03]} Nc7 {[%emt 0:00:01]} 50. Kc3 {[%emt 0:00:07]} Nb5+ {[%emt 0:00:02]} 51. Kd2 {[%emt 0:00:01]} Nc7 {[%emt 0:00:00]} 52. Kc3 {[%emt 0:00:01] Weighted Error Value: White=0.09 (flawless) /Black=0.06 (flawless)} 1/2-1/2

[Event "AI Cup Div-2 2023"]
[Site "Online"]
[Date "2023.09.27"]
[Round "52.2"]
[White "Eljanov, Pavel"]
[Black "Dominguez Perez, Leinier"]
[Result "0-1"]
[ECO "A36"]
[WhiteElo "2695"]
[BlackElo "2745"]
[Annotator "TA"]
[PlyCount "54"]
[EventDate "2023.09.18"]
[EventType "k.o."]
[EventCountry "NET"]
[SourceTitle "playchess.com"]
[Source "ChessBase"]
[SourceQuality "1"]
[TimeControl "900+3"]

{[%evp 9,54,0,10,0,0,0,0,0,0,0,20,0,0,0,14,0,0,0,0,0,18,4,7,0,0,-17,-39,-49,-35,-106,-99,-92,-95,-101,-93,-162,-139,-154,-146,-166,-87,-96,-69,-1295,-1294,-1175,-1109]} 1. c4 {[%emt 0:00:04]} c5 {[%emt 0:00:09]} 2. g3 {[%emt 0:00:01]} g6 {[%emt 0:00:01]} 3. Bg2 {[%emt 0:00:01]} Bg7 {[%emt 0:00:01]} 4. Nc3 {[%emt 0:00:01]} Nc6 {[%emt 0:00:01]} 5. d3 {[%emt 0:00:31]} d6 {[%emt 0:00:04]} 6. a3 {[%emt 0:00:21] A36: Symmetrical English vs ...g6: 4 Bg2 Bg7.} e6 {[%emt 0:00:47]} 7. Bd2 {[%emt 0:00:33] is recently more successful than 7.e4.} Nge7 {[%emt 0:00:03]} 8. Rb1 {[%emt 0:00:08] The position is equal.} b6 {[%emt 0:00:05]} 9. b4 {[%emt 0:00:10][%cal Bb2b4,Bb4b5][%mdl 32] [#] Hoping for b5.} Bb7 {[%emt 0:00:02]} 10. b5 {[%emt 0:00:05]} Na5 {[%emt 0:00:03]} 11. Nf3 {[%emt 0:00:09]} a6 {[%emt 0:02:51]} 12. O-O {[%emt 0:02:43]} O-O {[%emt 0:00:33]} 13. Qc2 {[%emt 0:00:21]} axb5 {[%emt 0:00:31]} 14. Nxb5 {[%emt 0:01:07]} Nac6 {[%emt 0:02:56] [#]} 15. Bc3 $146 {[%emt 0:01:33]} ({Predecessor:} 15. Rb3 d5 16. cxd5 Nxd5 17. Nc3 Na5 18. Rbb1 c4 19. Nxd5 Bxd5 20. Bb4 cxd3 21. Qxd3 Re8 22. Bc3 Ba2 23. Qxd8 Raxd8 24. Rb2 Bxc3 {½-½ Tkachiev,V (2634)-Kramnik,V (2809) FRA-chT1 France 2002 (3.1)}) 15... e5 {[%emt 0:00:35]} 16. Nd2 {[%emt 0:01:32]} Nd4 {[%emt 0:01:15]} 17. Bxd4 {[%emt 0:00:10]} (17. Nxd4 $5 Bxg2 18. Ne6 (18. Kxg2 exd4 19. Bb2 d5 $15) 18... fxe6 19. Kxg2 $11) 17... Bxg2 {[%emt 0:00:02]} 18. Kxg2 {[%emt 0:00:18] Bc3 would be deadly.} exd4 {[%emt 0:00:02]} 19. Ne4 {[%emt 0:00:37]} ({White should try} 19. Kg1 $15) 19... d5 $17 {[%emt 0:00:22]} 20. cxd5 {[%emt 0:00:06]} Nxd5 {[%emt 0:00:02]} ({Don't do} 20... Qxd5 21. Nc7 Qc6 22. Nxa8 Rxa8 23. Qb3 $16) 21. Qc4 {[%emt 0:01:25]} Qd7 {[%emt 0:00:54]} 22. Rfe1 {[%emt 0:01:09]} (22. Kg1 $17) 22... Rfe8 $19 {[%emt 0:01:50]} 23. Nbd6 {[%emt 0:01:57]} Re5 {[%emt 0:00:02]} 24. Qb5 {[%emt 0:00:09] [#]} Qg4 {[%emt 0:00:03]} (24... Qe6 $1 $19 {aiming for ...Rh5.} 25. Qc6 Rd8 26. Rxb6 Rxe4 27. Nxe4 Nxb6 28. Qxe6 fxe6 29. Nxc5 e5) 25. Qc6 $17 {[%emt 0:00:24]} Rf8 {[%emt 0:00:15]} (25... Rxa3 $2 26. Qb7 Qe6 27. Nc4 Rxe4 28. Nxa3 $18) 26. f3 $2 {[%emt 0:00:29][%mdl 8192]} (26. Rxb6 $15 Nxb6 27. Qxb6) 26... Ne3+ $19 {[%emt 0:00:07]} 27. Kf2 {[%emt 0:00:11]} Qh3 {[%emt 0:00:01] Weighted Error Value: White=0.40/Black=0.07 (flawless)} 0-1

[Event "AI Cup Div-2 2023"]
[Site "Online"]
[Date "2023.09.27"]
[Round "52.2"]
[White "Niemann, Hans Moke"]
[Black "Keymer, Vincent"]
[Result "0-1"]
[ECO "B10"]
[WhiteElo "2667"]
[BlackElo "2717"]
[Annotator "TA"]
[PlyCount "105"]
[EventDate "2023.09.18"]
[EventType "k.o."]
[EventCountry "NET"]
[SourceTitle "playchess.com"]
[Source "ChessBase"]
[SourceQuality "1"]
[TimeControl "900+3"]

{[%evp 9,105,3,10,6,15,0,2,0,18,6,36,14,9,-27,-37,-33,-31,-34,-35,-58,-68,-75,-78,-69,-76,-84,-56,-62,-53,-49,-58,-89,-55,-113,-99,-114,-107,-117,-118,-172,-177,-188,-185,-191,-189,-200,-94,-244,-250,-268,-264,-264,-266,-397,-402,-376,-312,-270,-223,-220,-74,-58,4,-20,0,-209,-217,-335,-325,-361,-325,-453,-437,-466,-467,-514,-512,-547,-530,-545,-475,-467,-449,-482,-481,-556,-503,-570,-550,-564,-508,-6147,-6272,-5716,-5700,-5600,-5600,-4562]} 1. e4 {[%emt 0:00:06]} c6 {[%emt 0:00:05]} 2. Nf3 {[%emt 0:00:05]} d5 {[%emt 0:00:01]} 3. d3 {[%emt 0:00:00]} dxe4 {[%emt 0:00:01]} 4. dxe4 {[%emt 0:00:01]} Qxd1+ {[%emt 0:00:01]} 5. Kxd1 {[%emt 0:00:00]} Nd7 {[%emt 0:00:00][%cal Bb8d7,Bd7c5,Bc5e6,Be6d4][%mdl 32]} 6. Nfd2 {[%emt 0:00:28] B10: Caro-Kann: 2 d3 and 2 c4.} f5 {[%emt 0:00:02]} 7. Nc3 {[%emt 0:02:26]} Ngf6 {[%emt 0:00:19]} 8. f3 {[%emt 0:00:12] The position is equal.} g6 {[%emt 0:00:37] [#]} 9. a4 $146 {[%emt 0:00:11]} ({Predecessor:} 9. exf5 gxf5 10. Nc4 Bg7 11. Be3 Nd5 12. Bd2 O-O 13. Ke1 Nc5 14. Nd1 e5 15. c3 {0-1 Hansen,E (2606)-Keymer,V (2607) Titled Tuesday intern op 14th Sept blitz 2021 (8)}) 9... Bg7 {[%emt 0:00:20]} 10. Bc4 {[%emt 0:00:01]} Nc5 {[%emt 0:02:58]} 11. e5 {[%emt 0:00:07]} Nh5 {[%emt 0:00:16]} 12. Re1 {[%emt 0:00:06]} Be6 {[%emt 0:00:13]} 13. Bxe6 {[%emt 0:00:39]} Nxe6 {[%emt 0:00:02]} 14. g3 {[%emt 0:00:24]} O-O-O {[%emt 0:00:08]} 15. a5 {[%emt 0:00:02]} Bh6 {[%emt 0:00:51]} 16. Ra4 {[%emt 0:00:38]} Rd7 {[%emt 0:00:19] Black is much more active. The white rooks are badly placed.} 17. f4 {[%emt 0:00:26]} Rhd8 {[%emt 0:00:41]} (17... g5 {feels hotter.} 18. fxg5 Bxg5 19. Ke2 Nd4+) 18. Ke2 {[%emt 0:00:54]} Nd4+ {[%emt 0:00:01]} ({Reject} 18... g5 19. fxg5 Bxg5 20. Nf3 $11) 19. Rxd4 $1 {[%emt 0:00:03]} Rxd4 {[%emt 0:00:02]} 20. Nb3 {[%emt 0:00:18]} Rc4 {[%emt 0:00:53][%cal Rh5f4]} 21. Be3 {[%emt 0:00:24] [#]} ({Better is} 21. Nd2 $15 Rb4 22. b3) 21... g5 $1 $17 {[%emt 0:00:44][%cal Rg5f4]} 22. fxg5 {[%emt 0:00:03]} (22. Nd2 Rxc3) 22... Bg7 $36 {[%emt 0:00:01][%mdl 2048] Black is in control.} 23. Bxa7 {[%emt 0:01:39]} Bxe5 {[%emt 0:00:08]} 24. Bb6 {[%emt 0:01:07]} (24. Nd2 $17 Rg4 25. Bb6) 24... Bxc3 $19 {[%emt 0:00:37]} 25. bxc3 {[%emt 0:00:03] [#]} Re4+ $1 {[%emt 0:00:09][%mdl 64] Skewer} 26. Be3 {[%emt 0:00:16]} Rd5 {[%emt 0:00:54]} 27. Kf3 {[%emt 0:00:54]} e5 {[%emt 0:00:54]} (27... Rde5 $19 {has better winning chances. Threatens to win with ...Rc4.} 28. Nd4 f4 29. gxf4 Rxf4+ 30. Bxf4 Rxe1) 28. Nd2 {[%emt 0:00:14]} (28. a6 $17 bxa6 29. Ra1) 28... Ra4 {[%emt 0:00:02]} 29. Nb3 {[%emt 0:00:31]} Ng7 {[%emt 0:00:10]} 30. h4 {[%emt 0:00:31]} Ne6 {[%emt 0:00:17]} 31. Bb6 {[%emt 0:00:14]} (31. Bf2 $142) 31... Rc4 {[%emt 0:00:23]} 32. Re3 {[%emt 0:00:06]} Kd7 {[%emt 0:00:07] Strongly threatening ...f4.} 33. Ke2 {[%emt 0:00:31]} Rg4 {[%emt 0:00:27]} 34. Nd2 {[%emt 0:00:29]} Ke7 {[%emt 0:01:58]} (34... c5 $19 {[%cal Oe6f4] and Black stays clearly on top. Hoping for ...Nf4+!} 35. Ke1 f4) 35. c4 $17 {[%emt 0:01:20]} f4 {[%emt 0:00:12]} (35... Rd6 $15) 36. Re4 {[%emt 0:00:12]} Rd7 {[%emt 0:00:35] ...Nd4+ would be deadly.} (36... Rd6 $5 {[%cal Re6d4]}) 37. Nf1 $2 {[%emt 0:00:11] [#] Black converts the advantage convincingly.} (37. Nf3 $1 $11 {and White has nothing to worry.}) 37... Kf7 $1 $19 {[%emt 0:00:24]} 38. Kf3 {[%emt 0:00:04] [#]} (38. c3 $142) 38... Rxg5 $1 {[%emt 0:00:01][%mdl 512]} 39. gxf4 {[%emt 0:00:09]} (39. Re1 Rh5) 39... Rf5 {[%emt 0:00:07][%cal Rf5f4]} 40. Rxe5 {[%emt 0:00:07]} Rxf4+ {[%emt 0:00:01] Black is clearly winning.} 41. Ke2 {[%emt 0:00:06]} Rxc4 {[%emt 0:00:05]} (41... Rxh4 $2 {is the wrong capture.} 42. Ne3 $19) 42. Ne3 {[%emt 0:00:03]} Rxh4 {[%emt 0:00:01]} 43. Rf5+ {[%emt 0:00:04]} Kg6 {[%emt 0:00:02]} 44. Re5 {[%emt 0:00:06]} Nf4+ {[%emt 0:00:17]} 45. Kf3 {[%emt 0:00:03]} Nd5 {[%emt 0:00:01]} 46. Kg3 {[%emt 0:00:10]} Ra4 {[%emt 0:00:08]} 47. Ng2 {[%emt 0:00:20]} Kf6 {[%emt 0:00:19]} 48. Re2 {[%emt 0:00:05]} Rg7+ {[%emt 0:00:02]} 49. Kf3 {[%emt 0:00:01]} Ra3+ {[%emt 0:00:05]} 50. Kf2 {[%emt 0:00:01] [#]} (50. Ne3 $142 Nxb6 51. axb6) 50... Rxg2+ $1 {[%emt 0:00:02][%mdl 64] Remove Defender, Decoy} 51. Kxg2 {[%emt 0:00:01]} Nf4+ {[%emt 0:00:01]} 52. Kf2 {[%emt 0:00:00]} Nxe2 {[%emt 0:00:00]} 53. Kxe2 {[%emt 0:00:00] Weighted Error Value: White=0.48/Black=0.20 (precise)} 0-1